fUSD/lending_fUSD_20240116
["ID","MTS","AMOUNT","RATE_DAILY","PERIOD"]
[311739839,1705371064704,-500.0,0.00022719,2]
[311739840,1705371064714,-500.0,0.00022719,2]
[311739841,1705371064725,-500.0,0.00022719,2]
[311739842,1705371064735,-500.0,0.00022719,2]
[311739843,1705371064744,-500.0,0.00022719,2]
[311739844,1705371064754,-562.63,0.00022719,2]
[311739845,1705371064763,-629.46,0.00022719,2]
[311739846,1705371064773,-612.37,0.00022719,2]
[311739847,1705371064783,-500.0,0.00022719,2]
[311739848,1705371064792,-396.7054665,0.00022719,2]
[311739849,1705371064801,-657.08,0.00022719,2]
[311739850,1705371064811,-500.0,0.00022719,2]
[311739851,1705371064821,-963.76,0.00022719,2]
[311739852,1705371064831,-500.0,0.00022719,2]
[311739853,1705371064841,-1183.84,0.00022719,2]
[311739854,1705371064851,-500.0,0.00022719,2]
[311739855,1705371064861,-500.0,0.00022719,2]
[311739856,1705371064870,-755.51,0.00022719,2]
[311739857,1705371064880,-557.68,0.00022719,2]
[311739858,1705371064889,-500.0,0.00022719,2]
[311739859,1705371064899,-500.0,0.00022719,2]
[311739860,1705371064909,-500.0,0.00022719,2]
[311739861,1705371064918,-844.43,0.00022719,2]
[311739862,1705371064927,-500.0,0.00022719,2]
[311739863,1705371064937,-830.77,0.00022719,2]
[311739864,1705371064947,-503.32,0.00022719,2]
[311739865,1705371064956,-647.14,0.00022719,2]
[311739866,1705371064965,-500.0,0.00022719,2]
[311739867,1705371064975,-569.95,0.00022719,2]
[311739868,1705371064985,-772.86,0.00022719,2]
[311739869,1705371064995,-500.0,0.00022719,2]
[311739870,1705371065004,-500.0,0.00022719,2]
[311739871,1705371065014,-500.0,0.00022719,2]
[311739872,1705371065024,-728.18,0.00022719,2]
[311739873,1705371065033,-500.0,0.00022719,2]
[311739874,1705371065043,-500.0,0.00022719,2]
[311739875,1705371065053,-500.0,0.00022719,2]
[311739876,1705371065062,-500.0,0.00022719,2]
[311739877,1705371065072,-661.57,0.00022719,2]
[311739878,1705371065082,-644.26,0.00022719,2]
[311739879,1705371065093,-648.63,0.00022719,2]
[311739880,1705371065103,-500.0,0.00022719,2]
[311739881,1705371065113,-500.0,0.00022719,2]
[311739882,1705371065122,-762.04,0.00022719,2]
[311739883,1705371065133,-540.53,0.00022719,2]
[311739884,1705371065142,-500.0,0.00022719,2]
[311739885,1705371065152,-631.24,0.00022719,2]
[311739886,1705371065162,-609.23,0.00022719,2]
[311739887,1705371065173,-500.0,0.00022719,2]
[311739888,1705371065183,-500.0,0.00022719,2]
[311739889,1705371065192,-574.3,0.00022719,2]
[311739890,1705371065202,-500.0,0.00022719,2]
[311739891,1705371065212,-500.0,0.00022719,2]
[311739892,1705371065222,-500.0,0.00022719,2]
[311739893,1705371065232,-703.69,0.00022719,2]
[311739894,1705371065241,-500.0,0.00022719,2]
[311739895,1705371065252,-500.0,0.00022719,2]
[311739896,1705371065261,-770.8,0.00022719,2]
[311739897,1705371065271,-1420.47,0.00022719,2]
[311739898,1705371065280,-518.12,0.00022719,2]
[311739899,1705371065290,-920.13,0.00022719,2]
[311739900,1705371065300,-500.0,0.00022719,2]
[311739901,1705371065310,-815.52,0.00022719,2]
[311739902,1705371065319,-554.66,0.00022719,2]
[311739903,1705371065329,-500.0,0.00022719,2]
[311739904,1705371065339,-500.0,0.00022719,2]
[311739905,1705371065348,-500.0,0.00022719,2]
[311739906,1705371065358,-500.0,0.00022719,2]
[311739907,1705371065368,-873.33,0.00022719,2]
[311739908,1705371065378,-754.71,0.00022719,2]
[311739909,1705371065387,-500.0,0.00022719,2]
[311739910,1705371065395,-719.31,0.00022719,2]
[311739911,1705371065403,-274.90550859,0.00022719,2]
[311739912,1705371065411,-500.0,0.00022719,2]
[311739913,1705371065419,-500.0,0.00022719,2]
[311739914,1705371065428,-623.69,0.00022719,2]
[311739915,1705371065436,-500.0,0.00022719,2]
[311739916,1705371065445,-555.54,0.00022719,2]
[311739917,1705371065455,-500.0,0.00022719,2]
[311739918,1705371065465,-500.0,0.00022719,2]
[311739919,1705371065475,-500.0,0.00022719,2]
[311739920,1705371065485,-500.0,0.00022719,2]
[311739921,1705371065494,-500.0,0.00022719,2]
[311739922,1705371065504,-500.0,0.00022719,2]
[311739923,1705371065513,-500.0,0.00022719,2]
[311739924,1705371065523,-500.0,0.00022719,2]
[311739925,1705371065533,-710.18,0.00022719,2]
[311739926,1705371065543,-500.0,0.00022719,2]
[311739927,1705371065552,-500.0,0.00022719,2]
[311739928,1705371065562,-500.0,0.00022719,2]
[311739929,1705371065571,-500.0,0.00022719,2]
[311739930,1705371065581,-500.0,0.00022719,2]
[311739931,1705371065591,-1404.54,0.00022719,2]
[311739932,1705371065600,-763.55,0.00022719,2]
[311739933,1705371065609,-549.57,0.00022719,2]
[311739934,1705371065619,-500.0,0.00022719,2]
[311739935,1705371065628,-500.0,0.00022719,2]
[311739936,1705371065638,-672.31,0.00022719,2]
[311739937,1705371065648,-500.0,0.00022719,2]
[311739938,1705371065658,-500.0,0.00022719,2]
[311739939,1705371065667,-500.0,0.00022719,2]
[311739940,1705371065677,-702.73,0.00022719,2]
[311739941,1705371065687,-500.0,0.00022719,2]
[311739942,1705371065697,-599.14,0.00022719,2]
[311739943,1705371065707,-544.37,0.00022719,2]
[311739944,1705371065716,-660.8,0.00022719,2]
[311739945,1705371065726,-500.0,0.00022719,2]
[311739946,1705371065736,-500.0,0.00022719,2]
[311739947,1705371065746,-500.0,0.00022719,2]
[311739948,1705371065755,-512.05,0.00022719,2]
[311739949,1705371065765,-500.0,0.00022719,2]
[311739950,1705371065775,-864.8,0.00022719,2]
[311739951,1705371065785,-500.0,0.00022719,2]
[311739952,1705371065795,-500.0,0.00022719,2]
[311739953,1705371065805,-500.0,0.00022719,2]
[311739954,1705371065815,-500.0,0.00022719,2]
[311739955,1705371065825,-500.0,0.00022719,2]
[311739956,1705371065834,-738.13,0.00022719,2]
[311739957,1705371065845,-1853.79,0.00022719,2]
[311739958,1705371065855,-500.0,0.00022719,2]
[311739959,1705371065865,-816.9,0.00022719,2]
[311739960,1705371065875,-206.59916162,0.00022719,2]
[311739961,1705371065885,-633.99,0.00022719,2]
[311739962,1705371065895,-500.0,0.00022719,2]
[311739963,1705371065904,-1024.58,0.00022719,2]
[311739964,1705371065914,-555.62,0.00022719,2]
[311739965,1705371065924,-746.29,0.00022719,2]
[311739966,1705371065933,-689.96,0.00022719,2]
[311739967,1705371065943,-500.0,0.00022719,2]
[311739968,1705371065953,-500.0,0.00022719,2]
[311739969,1705371065962,-814.12,0.00022719,2]
[311739970,1705371065972,-791.3,0.00022719,2]
[311739971,1705371065982,-500.0,0.00022719,2]
[311739972,1705371065992,-500.0,0.00022719,2]
[311739973,1705371066002,-500.0,0.00022719,2]
[311739974,1705371066011,-500.0,0.00022719,2]
[311739975,1705371066021,-524.11225772,0.00022719,2]
[311739976,1705371066031,-681.87,0.00022719,2]
[311739977,1705371066041,-1338.64,0.00022719,2]
[311739978,1705371066051,-500.0,0.00022719,2]
[311739979,1705371066061,-705.92,0.00022719,2]
[311739980,1705371066071,-500.0,0.00022719,2]
[311739981,1705371066081,-630.21,0.00022719,2]
[311739982,1705371066091,-5269.88,0.00022719,2]
[311739983,1705371066101,-500.0,0.00022719,2]
[311739984,1705371066111,-4960.97,0.00022719,2]
[311739985,1705371066121,-505.75,0.00022719,2]
[311739986,1705371066131,-500.0,0.00022719,2]
[311739987,1705371066141,-791.12,0.00022719,2]
[311739988,1705371066151,-500.0,0.00022719,2]
[311739989,1705371066160,-2408.73,0.00022719,2]
[311739990,1705371066170,-500.0,0.00022719,2]
[311739991,1705371066180,-500.0,0.00022719,2]
[311739992,1705371066190,-500.0,0.00022719,2]
[311739993,1705371066200,-742.16,0.00022719,2]
[311739994,1705371066209,-1730.4,0.00022719,2]
[311739995,1705371066219,-374.58321479,0.00022719,2]
[311739996,1705371066229,-557.95426745,0.00022719,2]
[311739997,1705371066239,-2942.85,0.00022719,2]
[311739998,1705371066251,-500.0,0.00022719,2]
[311739999,1705371066261,-500.0,0.00022719,2]
[311740000,1705371066271,-804.5,0.00022719,2]
[311740001,1705371066280,-164.15792037,0.00022719,2]
[311740002,1705371066290,-500.0,0.00022719,2]
[311740003,1705371066300,-500.0,0.00022719,2]
[311740004,1705371066310,-1124.3,0.00022719,2]
[311740005,1705371066319,-500.0,0.00022719,2]
[311740006,1705371066330,-522.13,0.00022719,2]
[311740007,1705371066339,-2391.23,0.00022719,2]
[311740008,1705371066349,-502.79,0.00022719,2]
[311740009,1705371066359,-500.0,0.00022719,2]
[311740010,1705371066369,-697.04,0.00022719,2]
[311740011,1705371066378,-500.0,0.00022719,2]
[311740012,1705371066388,-1009.12,0.00022719,2]
[311740013,1705371066397,-8268.26,0.00022719,2]
[311740014,1705371066407,-500.0,0.00022719,2]
[311740015,1705371066416,-823.98,0.00022719,2]
[311740016,1705371066426,-500.0,0.00022719,2]
[311740017,1705371066435,-500.0,0.00022719,2]
[311740018,1705371066445,-1343.38,0.00022719,2]
[311740019,1705371066454,-500.0,0.00022719,2]
[311740020,1705371066464,-500.0,0.00022719,2]
[311740021,1705371066474,-500.0,0.00022719,2]
[311740022,1705371066485,-500.0,0.00022719,2]
[311740023,1705371066496,-661.48,0.00022719,2]
[311740024,1705371066505,-5020.46,0.00022719,2]
[311740025,1705371066514,-500.0,0.00022719,2]
[311740026,1705371066524,-772.69,0.00022719,2]
[311740027,1705371066534,-4894.51,0.00022719,2]
[311740028,1705371066543,-578.8,0.00022719,2]
[311740029,1705371066553,-513.38,0.00022719,2]
[311740030,1705371066565,-500.0,0.00022719,2]
[311740031,1705371066575,-3781.69,0.00022719,2]
[311740032,1705371066584,-537.46,0.00022719,2]
[311740033,1705371066594,-515.93550663,0.00022719,2]
[311740034,1705371066603,-500.0,0.00022719,2]
[311740035,1705371066709,-500.0,0.00022719,2]
[311740036,1705371066719,-536.39778048,0.00022719,2]
[311740037,1705371066730,-667.28,0.00022719,2]
[311740038,1705371066740,-9533.8,0.00022719,2]
[311740039,1705371066750,-500.0,0.00022719,2]
[311740040,1705371066760,-548.6,0.00022719,2]
[311740041,1705371066771,-500.0,0.00022719,2]
[311740042,1705371066783,-689.51,0.00022719,2]
[311740043,1705371066792,-1528.54,0.00022719,2]
[311740044,1705371066802,-3480.48,0.00022719,2]
[311740045,1705371066812,-500.0,0.00022719,2]
[311740046,1705371066821,-500.0,0.00022719,2]
[311740047,1705371066831,-1298.88,0.00022719,2]
[311740048,1705371066840,-500.0,0.00022719,2]
[311740049,1705371066850,-500.0,0.00022719,2]
[311740050,1705371066860,-272.82,0.00022719,2]
[311740051,1705371066869,-500.0,0.00022719,2]
[311740052,1705371066879,-500.0,0.00022719,2]
[311740053,1705371066889,-500.0,0.00022719,2]
[311740054,1705371066899,-500.0,0.00022719,2]
[311740055,1705371066909,-768.79,0.00022719,2]
[311740056,1705371066919,-2709.02,0.00022719,2]
[311740057,1705371066929,-500.0,0.00022719,2]
[311740058,1705371066939,-646.93,0.00022719,2]
[311740059,1705371066949,-500.0,0.00022719,2]
[311740060,1705371066959,-670.62,0.00022719,2]
[311740061,1705371066969,-500.0,0.00022719,2]
[311740062,1705371066979,-1135.37,0.00022719,2]
[311740063,1705371066988,-500.0,0.00022719,2]
[311740064,1705371066998,-534.1,0.00022719,2]
[311740065,1705371067008,-500.0,0.00022719,2]
[311740066,1705371067018,-500.0,0.00022719,2]
[311740067,1705371067027,-710.86,0.00022723,2]
[311740068,1705371067037,-838.39,0.00022723,2]
[311740069,1705371067046,-1096.15,0.00022723,2]
[311740070,1705371067057,-686.87,0.00022723,2]
[311740071,1705371067067,-1000.96,0.00022723,2]
[311740072,1705371067076,-530.95,0.00022723,2]
[311740073,1705371067086,-774.22,0.00022723,2]
[311740074,1705371067096,-634.55,0.00022723,2]
[311740075,1705371067105,-718.11,0.00022723,2]
[311740076,1705371067115,-500.0,0.00022723,2]
[311740077,1705371067124,-635.41,0.00022723,2]
[311740078,1705371067134,-500.0,0.00022723,2]
[311740079,1705371067144,-1440.26,0.00022723,2]
[311740080,1705371067154,-590.6,0.00022723,2]
[311740081,1705371067163,-500.0,0.00022723,2]
[311740082,1705371067172,-997.93,0.00022723,2]
[311740083,1705371067181,-500.0,0.00022723,2]
[311740084,1705371067190,-594.59,0.00022723,2]
[311740085,1705371067200,-876.05,0.00022723,2]
[311740086,1705371067211,-500.0,0.00022723,2]
[311740087,1705371067221,-942.45,0.00022723,2]
[311740088,1705371067231,-582.34,0.00022723,2]
[311740089,1705371067241,-500.0,0.00022723,2]
[311740090,1705371067250,-1230.65,0.00022723,2]
[311740091,1705371067260,-540.77,0.00022723,2]
[311740092,1705371067270,-500.0,0.00022723,2]
[311740093,1705371067279,-1818.47,0.00022723,2]
[311740094,1705371067288,-500.0,0.00022723,2]
[311740095,1705371067298,-500.0,0.00022723,2]
[311740096,1705371067308,-638.66,0.00022723,2]
[311740097,1705371067318,-500.0,0.00022723,2]
[311740098,1705371067327,-896.35,0.00022723,2]
[311740099,1705371067336,-934.0,0.00022723,2]
[311740100,1705371067346,-500.0,0.00022723,2]
[311740101,1705371067355,-710.89,0.00022723,2]
[311740102,1705371067365,-1056.33,0.00022723,2]
[311740103,1705371067374,-500.0,0.00022723,2]
[311740104,1705371067383,-500.0,0.00022723,2]
[311740105,1705371067393,-770.22,0.00022723,2]
[311740106,1705371067403,-1009.22,0.00022723,2]
[311740107,1705371067413,-500.0,0.00022723,2]
[311740108,1705371067423,-672.86,0.00022723,2]
[311740109,1705371067432,-643.57,0.00022723,2]
[311740110,1705371067442,-1169.95,0.00022723,2]
[311740111,1705371067453,-1262.83,0.00022723,2]
[311740112,1705371067462,-615.54,0.00022723,2]
[311740113,1705371067471,-585.26,0.00022723,2]
[311740114,1705371067481,-618.11850186,0.00022723,2]
[311740115,1705371067490,-897.78,0.00022723,2]
[311740116,1705371067500,-677.65,0.00022723,2]
[311740117,1705371067510,-2126.51,0.00022723,2]
[311740118,1705371067519,-741.72,0.00022723,2]
[311740119,1705371067528,-1673.21,0.00022723,2]
[311740120,1705371067538,-500.0,0.00022723,2]
[311740121,1705371067548,-2915.06,0.00022723,2]
[311740122,1705371067557,-875.05,0.00022723,2]
[311740123,1705371067566,-1035.7,0.00022723,2]
[311740124,1705371067576,-1242.14,0.00022723,2]
[311740125,1705371067585,-781.31,0.00022723,2]
[311740126,1705371067594,-2836.35,0.00022723,2]
[311740127,1705371067604,-500.0,0.00022723,2]
[311740128,1705371067613,-3601.52,0.00022723,2]
[311740129,1705371067622,-2832.34,0.00022723,2]
[311740130,1705371067632,-4021.76,0.00022723,2]
[311740131,1705371067641,-1453.74,0.00022723,2]
[311740132,1705371067651,-2103.41,0.00022723,2]
[311740133,1705371067660,-500.0,0.00022723,2]
[311740134,1705371067670,-1433.32,0.00022723,2]
[311740135,1705371067679,-1775.42,0.00022723,2]
[311740136,1705371067689,-500.0,0.00022723,5]
[311740137,1705371067699,-923.7,0.00022723,2]
[311740138,1705371067709,-1155.15,0.00022723,2]
[311740139,1705371067718,-3597.87,0.00022723,2]
[311740140,1705371067728,-529.06,0.00022723,2]
[311740141,1705371067738,-3669.98,0.00022723,2]
[311740142,1705371067748,-625.97,0.00022723,2]
[311740143,1705371067757,-2607.23,0.00022723,2]
[311740144,1705371067767,-1980.73,0.00022723,2]
[311740145,1705371067776,-4402.37,0.00022723,2]
[311740146,1705371067786,-1126.59,0.00022723,2]
[311740147,1705371067795,-500.0,0.00022723,2]
[311740148,1705371067806,-2989.59,0.00022723,2]
[311740149,1705371067816,-2254.51,0.00022723,2]
[311740150,1705371067825,-500.0,0.00022723,2]
[311740151,1705371067835,-500.0,0.00022723,2]
[311740152,1705371067845,-1943.37,0.00022723,2]
[311740153,1705371067854,-500.0,0.00022723,2]
[311740154,1705371067864,-2908.33,0.00022723,2]
[311740155,1705371067874,-500.0,0.00022723,2]
[311740156,1705371067884,-500.0,0.00022723,2]
[311740157,1705371067893,-1497.41,0.00022723,2]
[311740158,1705371067903,-500.0,0.00022723,2]
[311740159,1705371067913,-754.02,0.00022723,2]
[311740160,1705371067924,-893.27,0.00022723,2]
[311740161,1705371067934,-1304.27,0.00022723,2]
[311740162,1705371067944,-1656.47,0.00022723,2]
[311740163,1705371067953,-991.69,0.00022723,2]
[311740164,1705371067963,-602.27,0.00022723,2]
[311740165,1705371067972,-4284.42,0.00022723,2]
[311740166,1705371067983,-4126.07,0.00022723,2]
[311740167,1705371067991,-1355.88,0.00022723,2]
[311740168,1705371068001,-1442.14,0.00022723,2]
[311740169,1705371068011,-1248.21,0.00022723,2]
[311740170,1705371068021,-785.79,0.00022723,2]
[311740171,1705371068031,-500.0,0.00022723,2]
[311740172,1705371068041,-977.07,0.00022723,2]
[311740173,1705371068050,-651.38,0.00022723,2]
[311740174,1705371068060,-1613.67,0.00022723,2]
[311740175,1705371068070,-3136.51,0.00022723,2]
[311740176,1705371068080,-3071.82,0.00022723,2]
[311740177,1705371068090,-1948.33,0.00022723,2]
[311740178,1705371068099,-789.35,0.00022723,2]
[311740179,1705371068109,-6519.48,0.00022723,2]
[311740180,1705371068119,-1128.94,0.00022723,2]
[311740181,1705371068128,-500.0,0.00022723,2]
[311740182,1705371068138,-685.41,0.00022723,2]
[311740183,1705371068148,-460.74,0.00022723,2]
[311740184,1705371068158,-787.54,0.00022723,2]
[311740185,1705371068167,-756.1,0.00022723,2]
[311740186,1705371068177,-500.0,0.00022723,2]
[311740187,1705371068186,-702.57,0.00022723,2]
[311740188,1705371068196,-6143.49,0.00022723,2]
[311740189,1705371068206,-2955.64,0.00022723,2]
[311740190,1705371068217,-6649.44,0.00022723,2]
[311740191,1705371068228,-3165.5,0.00022723,2]
[311740192,1705371068239,-929.91,0.00022723,2]
[311740193,1705371068249,-1618.8,0.00022723,2]
[311740194,1705371068259,-613.81,0.00022724,2]
[311740195,1705371068269,-500.0,0.00022724,2]
[311740196,1705371068279,-618.85,0.00022724,2]
[311740197,1705371068289,-723.49,0.00022724,2]
[311740198,1705371068299,-500.0,0.00022724,2]
[311740199,1705371068309,-500.0,0.00022724,2]
[311740200,1705371068320,-500.0,0.00022724,2]
[311740201,1705371068329,-500.0,0.00022724,2]
[311740202,1705371068339,-500.0,0.00022724,2]
[311740203,1705371068350,-500.0,0.00022724,2]
[311740204,1705371068360,-500.0,0.00022724,2]
[311740205,1705371068370,-513.74,0.00022724,2]
[311740206,1705371068380,-500.0,0.00022724,2]
[311740207,1705371068389,-500.0,0.00022724,2]
[311740208,1705371068399,-500.0,0.00022724,2]
[311740209,1705371068409,-554.98470763,0.00022724,2]
[311740210,1705371068418,-571.15,0.00022724,2]
[311740211,1705371068428,-500.0,0.00022724,2]
[311740212,1705371068437,-734.92,0.00022724,2]
[311740213,1705371068447,-657.51,0.00022724,2]
[311740214,1705371068456,-626.66,0.00022724,2]
[311740215,1705371068466,-509.26,0.00022724,2]
[311740216,1705371068477,-500.0,0.00022724,2]
[311740217,1705371068487,-635.32,0.00022724,2]
[311740218,1705371068497,-500.0,0.00022724,2]
[311740219,1705371068506,-500.0,0.00022724,2]
[311740220,1705371068516,-666.82,0.00022724,2]
[311740221,1705371068525,-500.0,0.00022724,2]
[311740222,1705371068534,-531.24,0.00022724,2]
[311740223,1705371068543,-500.0,0.00022724,2]
[311740224,1705371068552,-722.35,0.00022724,2]
[311740225,1705371068561,-500.0,0.00022724,2]
[311740226,1705371068570,-500.0,0.00022724,2]
[311740227,1705371068579,-500.0,0.00022724,2]
[311740228,1705371068588,-500.0,0.00022724,2]
[311740229,1705371068597,-656.87,0.00022724,2]
[311740230,1705371068606,-500.0,0.00022724,2]
[311740231,1705371068616,-553.61,0.00022724,2]
[311740232,1705371068625,-580.5,0.00022724,2]
[311740233,1705371068634,-500.0,0.00022724,2]
[311740234,1705371068643,-500.0,0.00022724,2]
[311740235,1705371068653,-500.0,0.00022724,2]
[311740236,1705371068662,-500.0,0.00022724,2]
[311740237,1705371068672,-500.0,0.00022724,2]
[311740238,1705371068683,-500.0,0.00022724,2]
[311740239,1705371068693,-500.0,0.00022724,2]
[311740240,1705371068703,-672.36,0.00022724,2]
[311740241,1705371068712,-500.0,0.00022724,2]
[311740242,1705371068722,-500.0,0.00022724,2]
[311740243,1705371068733,-977.5,0.00022724,2]
[311740244,1705371068742,-503.3,0.00022724,2]
[311740245,1705371068752,-500.0,0.00022724,2]
[311740246,1705371068761,-500.0,0.00022724,2]
[311740247,1705371068772,-500.0,0.00022724,2]
[311740248,1705371068782,-500.0,0.00022724,2]
[311740249,1705371068792,-500.0,0.00022724,2]
[311740250,1705371068801,-500.0,0.00022724,2]
[311740251,1705371068811,-500.0,0.00022724,2]
[311740252,1705371068821,-500.0,0.00022724,2]
[311740253,1705371068831,-545.66,0.00022724,2]
[311740254,1705371068842,-508.53,0.00022724,2]
[311740255,1705371068852,-500.0,0.00022724,2]
[311740256,1705371068862,-500.0,0.00022724,2]
[311740257,1705371068871,-954.25,0.00022724,2]
[311740258,1705371068880,-500.0,0.00022724,2]
[311740259,1705371068890,-500.0,0.00022724,2]
[311740260,1705371068899,-985.37,0.00022724,2]
[311740261,1705371068908,-672.56,0.00022724,2]
[311740262,1705371068918,-593.56,0.00022724,2]
[311740263,1705371068927,-500.0,0.00022724,2]
[311740264,1705371068936,-500.0,0.00022724,2]
[311740265,1705371068946,-500.0,0.00022724,2]
[311740266,1705371068955,-429.69770341,0.00022724,2]
[311740267,1705371068965,-500.0,0.00022724,2]
[311740268,1705371068974,-500.0,0.00022724,2]
[311740269,1705371068985,-522.97,0.00022724,2]
[311740270,1705371068994,-500.0,0.00022724,2]
[311740271,1705371069004,-806.03,0.00022724,2]
[311740272,1705371069013,-500.0,0.00022724,2]
[311740273,1705371069022,-615.85,0.00022724,2]
[311740274,1705371069032,-500.0,0.00022724,2]
[311740275,1705371069041,-500.0,0.00022724,2]
[311740276,1705371069050,-500.0,0.00022724,2]
[311740277,1705371069059,-500.0,0.00022724,2]
[311740278,1705371069069,-705.72,0.00022724,2]
[311740279,1705371069077,-500.0,0.00022724,2]
[311740280,1705371069086,-500.0,0.00022724,2]
[311740281,1705371069095,-893.02,0.00022724,2]
[311740282,1705371069105,-1345.18,0.00022724,2]
[311740283,1705371069114,-500.0,0.00022724,2]
[311740284,1705371069124,-599.24,0.00022724,2]
[311740285,1705371069133,-606.06,0.00022724,2]
[311740286,1705371069142,-575.07,0.00022724,2]
[311740287,1705371069152,-1346.77,0.00022724,2]
[311740288,1705371069161,-500.0,0.00022724,2]
[311740289,1705371069171,-1172.99,0.00022724,2]
[311740290,1705371069181,-500.0,0.00022724,2]
[311740291,1705371069191,-500.0,0.00022724,2]
[311740292,1705371069200,-500.0,0.00022724,2]
[311740293,1705371069210,-500.0,0.00022724,2]
[311740294,1705371069219,-500.0,0.00022724,2]
[311740295,1705371069228,-500.0,0.00022724,2]
[311740296,1705371069240,-1188.36,0.00022724,2]
[311740297,1705371069249,-500.0,0.00022724,2]
[311740298,1705371069258,-500.0,0.00022724,2]
[311740299,1705371069266,-500.0,0.00022724,2]
[311740300,1705371069274,-520.04,0.00022724,2]
[311740301,1705371069282,-993.49,0.00022724,2]
[311740302,1705371069291,-841.55,0.00022724,2]
[311740303,1705371069300,-575.71,0.00022724,2]
[311740304,1705371069310,-500.0,0.00022724,2]
[311740305,1705371069319,-500.0,0.00022724,2]
[311740306,1705371069328,-520.07,0.00022724,2]
[311740307,1705371069338,-500.0,0.00022724,2]
[311740308,1705371069347,-984.77,0.00022724,2]
[311740309,1705371069357,-535.46,0.00022724,2]
[311740310,1705371069366,-500.0,0.00022724,2]
[311740311,1705371069375,-1337.8,0.00022724,2]
[311740312,1705371069384,-500.0,0.00022724,2]
[311740313,1705371069394,-500.0,0.00022724,2]
[311740314,1705371069403,-500.0,0.00022724,2]
[311740315,1705371069412,-1210.91,0.00022724,2]
[311740316,1705371069421,-2308.37,0.00022724,2]
[311740317,1705371069430,-513.8,0.00022724,2]
[311740318,1705371069439,-500.0,0.00022724,2]
[311740319,1705371069448,-788.42,0.00022724,2]
[311740320,1705371069458,-357.94525464,0.00022724,2]
[311740321,1705371069467,-500.0,0.00022724,2]
[311740322,1705371069477,-571.16,0.00022724,2]
[311740323,1705371069489,-790.93,0.00022724,2]
[311740324,1705371069498,-500.0,0.00022724,2]
[311740325,1705371069508,-1245.74,0.00022724,2]
[311740326,1705371069518,-529.01,0.00022724,2]
[311740327,1705371069527,-796.87,0.00022724,2]
[311740328,1705371069537,-500.0,0.00022724,2]
[311740329,1705371069546,-500.0,0.00022724,2]
[311740330,1705371069555,-1833.77,0.00022724,2]
[311740331,1705371069565,-500.0,0.00022724,2]
[311740332,1705371069575,-722.16,0.00022724,2]
[311740333,1705371069584,-500.0,0.00022724,2]
[311740334,1705371069593,-500.0,0.00022724,2]
[311740335,1705371069602,-500.0,0.00022724,2]
[311740336,1705371069611,-675.23,0.00022724,2]
[311740337,1705371069621,-295.74,0.00022724,2]
[311740338,1705371069631,-500.0,0.00022724,2]